Cogmind - Beta 13 @@@ ROGUE MODE // 2024.04.13 @ 15:12:06 Player: Bort Result: Destroyed by S-27 Virus with Autogun Performance ------------- Evolutions (3) 1500 Regions Visited (7) 1400 Robots Destroyed (57) 285 Value Destroyed (2162) 2162 Prototype IDs (5) 100 Alien Tech Used (0) 0 Bonus (369) 369 TOTAL SCORE: 5816 Bonus ------- Pacifist 200 High Alert Combat Kills 96 Follower Combat Kills 73 Cogmind --------- Core Integrity 0/700 Matter 300/300 Energy 86/100 System Corruption 0% Temperature Cool (0) Movement Core (50) Location -7/Lower Caves Parts ------- > --- POWER (2) -------- (None) > --- PROPULSION (3) --- (None) > --- UTILITY (4) ------ Signal Interpreter > --- WEAPON (4) ------- (None) > --- INVENTORY (5) ---- Improved Carbon-fiber Leg Coolant Injector Small Storage Unit Recoil Stabilizer Advanced Beam Cannon Peak State ------------ > --- POWER ------------ Deuterium Engine Light Nuclear Core > --- PROPULSION ------- Improved Carbon-fiber Leg Improved Carbon-fiber Leg Improved Carbon-fiber Leg > --- UTILITY ---------- Improved Heat Sink Signal Interpreter Recoil Stabilizer Improved Light Armor Plating > --- WEAPON ----------- Advanced Beam Cannon Cooled Particle Cannon Improved Assault Rifle Gauss Cannon > --- INVENTORY -------- Carbon-fiber Leg Carbon-fiber Leg Coolant Injector Small Storage Unit Gauss Cannon [Rating: 44] Favorites ----------- Power Light Nuclear Core Engine Light Ion Engine Power Core Light Nuclear Core Propulsion Armored Treads Treads Armored Treads Leg Improved Carbon-fiber Leg Utility Small Storage Unit Device Improved Heat Sink Storage Small Storage Unit Processor Signal Interpreter Protection Improved Light Armor Plating Weapon Advanced Beam Cannon Energy Gun Medium Laser Energy Cannon Advanced Beam Cannon Ballistic Gun Improved Assault Rifle Ballistic Cannon Gauss Cannon Launcher Grenade Launcher Build | -11 -10 -10 -9 -9 -8 -7 -7 ------- Run | Yrd Mat Min Mat Sto Mat Fac Low Slots Evolved 6 | . . . 2 . 2 2 . Power 1 | . . . 1 . . . . Propulsion 1 | . . . 1 . . . . Utility 2 | . . . . . 1 1 . Weapon 2 | . . . . . 1 1 . Parts Attached 54 | 6 1 1 11 11 11 10 3 Power 13 | 1 . . 4 5 2 . 1 Engine 8 | 1 . . 2 4 1 . . Core 5 | . . . 2 1 1 . 1 Reactor . | . . . . . . . . Propulsion 14 | 2 . . 4 2 2 4 . Treads 8 | 2 . . 4 2 . . . Leg 6 | . . . . . 2 4 . Wheel . | . . . . . . . . Hover . | . . . . . . . . Flight . | . . . . . . . . Utility 12 | 1 . 1 1 2 3 3 1 Device 4 | . . . 1 1 1 1 . Storage 3 | 1 . 1 . . 1 . . Processor 2 | . . . . 1 . 1 . Hackware . | . . . . . . . . Protection 3 | . . . . . 1 1 1 Artifact . | . . . . . . . . Weapon 15 | 2 1 . 2 2 4 3 1 Energy Gun 1 | 1 . . . . . . . Energy Cannon 6 | . . . 2 2 1 1 . Ballistic Gun 4 | 1 . . . . 3 . . Ballistic Cannon 3 | . . . . . . 2 1 Launcher 1 | . 1 . . . . . . Special Weapon . | . . . . . . . . Impact Weapon . | . . . . . . . . Slashing Weapon . | . . . . . . . . Piercing Weapon . | . . . . . . . . Special Melee Weapon . | . . . . . . . . Unidentified Prototypes 5 | . . . . 3 1 1 . Parts Lost 12 | . . . . 1 . 1 10 Power 3 | . . . . . . . 3 Propulsion 3 | . . . . . . 1 2 Utility 3 | . . . . 1 . . 2 Weapon 3 | . . . . . . . 3 Highest Loss Streak 7 | . . . . 1 . 1 7 To Critical Strikes . | . . . . . . . . Average Slot Usage (%) 95 | . 85 97 95 99 96 97 87 Engine 10 | . 14 14 16 8 14 7 4 Core 5 | . . . 1 13 3 7 3 Treads 19 | . 28 28 32 33 16 . . Leg 7 | . . . . . 6 21 21 Device 8 | . . . 5 10 9 10 12 Storage 8 | . 14 25 16 8 1 . . Processor 4 | . . . . 2 9 10 7 Protection 2 | . . . . . 7 7 6 Energy Cannon 14 | . . . 18 22 17 13 13 Ballistic Gun 5 | . 14 14 1 . 9 7 5 Ballistic Cannon 2 | . . . . . . 8 8 Launcher 2 | . 11 14 1 . . . . Naked Turns . | . . . . . . . . Heaviest Build 40 | 12 13 14 32 28 30 40 40 Greatest Support 63 | 40 40 40 60 63 63 54 54 Greatest Overweight (x) 1 | . . . . . . 1 . Average Overweight (x) . | . . . . . . . . Largest Inventory Capacity 8 | 8 8 8 8 8 5 5 5 Average Capacity 6 | 7 8 8 8 7 5 5 5 Most Carried 6 | 5 1 1 6 6 5 5 5 Average Carried 2 | . . . 2 4 2 2 3 Final Capacity 8 | 8 8 8 8 5 5 5 5 Final Carried 5 | . . . 4 4 1 3 5 Class Distribution -------------------- 55% | Mutant 25% | Tank 13% | Scavenger-Tank 3% | Scavenger-Mutant Dominant Class ---------------- Mutant | -10/Materials Mutant | -10/Mines Mutant | -9/Materials Mutant | -9/Storage Tank | -8/Materials Scavenger-Tank | -7/Factory Tank | -7/Lower Caves Resources | -11 -10 -10 -9 -9 -8 -7 -7 ----------- Run | Yrd Mat Min Mat Sto Mat Fac Low Matter Collected 996 | 183 62 60 110 147 79 203 152 Remotely . | . . . . . . . . Salvage Created 2495 | . . . 493 981 297 490 234 Parts 126 | . . . 32 55 17 17 5 Haulers Intercepted 1 | . . . . 1 . . . Recyclers Shooed 1 | . . . . 1 . . . Parts Field Recycled . | . . . . . . . . Retrieved Matter . | . . . . . . . . Parts Self-Destructed 7 | . . . . . . . 7 Prevented . | . . . . . . . . Kills | -11 -10 -10 -9 -9 -8 -7 -7 ------- Run | Yrd Mat Min Mat Sto Mat Fac Low Combat Hostiles Destroyed 46 | . . . 9 15 6 9 7 Guns 4 | . . . . . . 2 2 Cannons 37 | . . . 9 14 6 3 5 AOE 3 | . . . . . . 3 . Classes Destroyed 9 | . . . 3 4 1 . 1 Builder 1 | . . . . 1 . . . Hauler 1 | . . . . 1 . . . Recycler 4 | . . . . 3 . 1 . Watcher 5 | . . . 3 1 . 1 . Swarmer 7 | . . . . 1 . 3 3 Grunt 18 | . . . 2 7 2 4 3 Duelist 1 | . . . . . . . 1 Sentry 19 | . . . 7 7 3 2 . Hunter 1 | . . . . . 1 . . Best Kill Streak 5 | . . . 3 5 1 3 3 Combat Bots Only 4 | . . . 3 4 1 3 3 Max Kills in Single Turn 3 | . . . 1 2 1 3 1 Gunslinging . | . . . . . . . . Exploded 3 | . . . . . . 3 . Melee . | . . . . . . . . Uniques/NPCs Destroyed . | . . . . . . . . Combat | -11 -10 -10 -9 -9 -8 -7 -7 -------- Run | Yrd Mat Min Mat Sto Mat Fac Low Hostile Shots Fired 345 | . . 6 46 71 38 44 140 Missed 112 | . . 3 12 23 16 11 47 Damage Taken 3718 | . . 23 439 667 359 478 1752 Core 932 | . . . 52 115 56 30 679 Absorbed by Shields . | . . . . . . . . Redirected to Shielding 71 | . . . . . 36 35 . Core Remaining (%) 86 | 100 . 100 . 58 89 . . Volleys Fired 113 | . . . 26 35 22 16 14 Largest 4 | . . . 2 2 3 4 4 Hottest 207 | . . . 120 136 159 207 169 Shots Fired 288 | . . . 52 70 50 64 52 Gun 32 | . . . . . 6 16 10 Cannon 256 | . . . 52 70 44 48 42 Launcher . | . . . . . . . . Special . | . . . . . . . . Kinetic 66 | . . . . . 6 32 28 Thermal 222 | . . . 52 70 44 32 24 Explosive . | . . . . . . . . Electromagnetic . | . . . . . . . . Robot Hit Streak 9 | . . . 5 9 6 5 4 Robot Miss Streak 7 | . . . 5 3 4 5 7 Penetration Max 1 | . . . . . . . 1 Secondary Targets . | . . . . . . . . Shots Hit Robots 147 | . . . 26 44 28 30 19 Core Hits 78 | . . . 10 21 10 22 15 Critical Kills 3 | . . . 1 1 . 1 . Critical Parts Destroyed . | . . . . . . . . Critical Strikes 4 | . . . 1 1 . 1 1 Meltdown 3 | . . . 1 1 . 1 . Blast 1 | . . . . . . . 1 Melee Attacks . | . . . . . . . . Impact . | . . . . . . . . Slashing . | . . . . . . . . Piercing . | . . . . . . . . Sneak Attacks . | . . . . . . . . Combat Hostiles . | . . . . . . . . Follow-up Attacks . | . . . . . . . . Damage Inflicted 3752 | . . . 610 1027 582 920 613 Guns 239 | . . . . . 48 125 66 Cannons 3211 | . . . 603 1012 534 549 513 Explosions 237 | . . . . . . 237 . Melee . | . . . . . . . . Ramming 65 | . . . 7 15 . 9 34 Kinetic 739 | . . . . . 48 293 398 Thermal 2746 | . . . 603 1012 534 416 181 Explosive 122 | . . . . . . 122 . Electromagnetic 80 | . . . . . . 80 . Impact . | . . . . . . . . Slashing . | . . . . . . . . Piercing . | . . . . . . . . Highest Corruption . | . . . . . . . . Average Corruption . | . . . . . . . . Corruption Purged . | . . . . . . . . Corruption Blocked . | . . . . . . . . Overload Shots . | . . . . . . . . Overflow Damage 57 | . . . . 1 12 17 27 Projectiles 40 | . . . . 1 12 . 27 Explosions 17 | . . . . . . 17 . Melee . | . . . . . . . . Knockbacks 9 | . . . . . . 2 7 Impact 1 | . . . . . . . 1 Kinetic 8 | . . . . . . 2 6 Secondary . | . . . . . . . . Self-Inflicted Damage 110 | . . . . . . 100 10 Shots 2 | . . . . . . 2 . Rammed 12 | . . . 1 3 . . 8 Targets Rammed 20 | . . . 2 5 . 2 11 Kicked 5 | . . . . . . 2 3 Crushed 3 | . . . 1 2 . . . Highest Temperature 374 | . . . 374 325 270 324 297 Average Temperature 110 | . . . 114 110 92 103 138 Received Heat Transfer 792 | . . . 168 267 99 120 138 Effects 4 | . . . 2 2 . . . Shutdowns 1 | . . . 1 . . . . Energy Bleed 2 | . . . 1 1 . . . Matter Decay 1 | . . . . 1 . . . Siege Activations . | . . . . . . . . Robots Corrupted . | . . . . . . . . Combat Hostiles . | . . . . . . . . Parts Fried . | . . . . . . . . Impact Corruptions . | . . . . . . . . Robots Melted 3 | . . . 1 1 . 1 . Combat Hostiles 2 | . . . . 1 . 1 . Parts Melted 17 | . . . 4 6 1 5 1 Heat Transferred 4675 | . . . 962 1776 962 679 296 Parts Sabotaged . | . . . . . . . . Parts Stolen . | . . . . . . . . Parts Stripped . | . . . . . . . . Power Chain Reactions 1 | . . . . . . 1 . Alert | -11 -10 -10 -9 -9 -8 -7 -7 ------- Run | Yrd Mat Min Mat Sto Mat Fac Low Peak Influence 685 | . 3 45 310 480 437 685 . Initial 198 | . . . 17 103 187 198 . Average 211 | . . 12 126 296 295 345 . Maximum Alert Level 2 | . . . 1 2 2 2 . Low Security (%) 46 | 100 100 100 86 12 25 7 . Level 1 38 | . . . 13 63 58 56 . Level 2 15 | . . . . 23 15 35 . Level 3 . | . . . . . . . . Level 4 . | . . . . . . . . Level 5 . | . . . . . . . . High Security . | . . . . . . . . Max Security . | . . . . . . . . Squads Dispatched 6 | . . . 1 1 . 4 . Investigation 1 | . . . . 1 . . . Extermination . | . . . . . . . . Reinforcement 1 | . . . 1 . . . . Assault 2 | . . . . . . 2 . Garrison 2 | . . . . . . 2 . Intercept . | . . . . . . . . Searches Triggered . | . . . . . . . . Construction Impeded . | . . . . . . . . Haulers Reinforced . | . . . . . . . . Active Scanning Responses . | . . . . . . . . Cargo Convoy Interrupts . | . . . . . . . . Stealth | -11 -10 -10 -9 -9 -8 -7 -7 --------- Run | Yrd Mat Min Mat Sto Mat Fac Low Distress Signals 1 | . . . . . . 1 . Communications Jammed . | . . . . . . . . Distress Signals . | . . . . . . . . Times Spotted 78 | . 1 2 14 24 10 14 13 Peak Tracking Total 7 | . 1 3 3 4 4 5 7 Tactical Retreats 7 | . . 1 2 3 . . 1 Traps | -11 -10 -10 -9 -9 -8 -7 -7 ------- Run | Yrd Mat Min Mat Sto Mat Fac Low Traps Triggered 1 | . . . . 1 . . . Indirectly . | . . . . . . . . Trap Hack Attempts . | . . . . . . . . Triggered . | . . . . . . . . Disarmed . | . . . . . . . . Reprogrammed . | . . . . . . . . Reused . | . . . . . . . . Traps Extracted . | . . . . . . . . Installed . | . . . . . . . . Triggered 1 | . . . . . . . 1 Machines | -11 -10 -10 -9 -9 -8 -7 -7 ---------- Run | Yrd Mat Min Mat Sto Mat Fac Low Machines Disabled 6 | . . . . 1 . 5 . Max in Single Turn 2 | . . . . 1 . 2 . Garrison Access 1 | . . . . . . 1 . Machines Repaired . | . . . . . . . . Machines Dismantled . | . . . . . . . . Machines Sabotaged . | . . . . . . . . Overloaded Fab Kills . | . . . . . . . . Hacking | -11 -10 -10 -9 -9 -8 -7 -7 --------- Run | Yrd Mat Min Mat Sto Mat Fac Low Machines Accessed 8 | . 1 . . 5 . 2 . Terminals 6 | . 1 . . 5 . . . Fabricators 1 | . . . . . . 1 . Repair Stations . | . . . . . . . . Recycling Units . | . . . . . . . . Scanalyzers . | . . . . . . . . Garrison Access 1 | . . . . . . 1 . Total Hacks 11 | . 1 . . 8 . 2 . Successful 8 | . 1 . . 6 . 1 . Failed 3 | . . . . 2 . 1 . Catastrophic 1 | . . . . 1 . . . Database Lockouts . | . . . . . . . . Manual . | . . . . . . . . Terminals 9 | . 1 . . 8 . . . Fabricators 1 | . . . . . . 1 . Repair Stations . | . . . . . . . . Recycling Units . | . . . . . . . . Scanalyzers . | . . . . . . . . Garrison Access 1 | . . . . . . 1 . Terminal Hacks 7 | . 1 . . 6 . . . Record 3 | . . . . 3 . . . Open Door 1 | . . . . 1 . . . Alert Level 1 | . . . . 1 . . . Maintenance Status 1 | . 1 . . . . . . Zone Layout 1 | . . . . 1 . . . Fabricator Hacks . | . . . . . . . . Repair Station Hacks . | . . . . . . . . Recycling Unit Hacks . | . . . . . . . . Scanalyzer . | . . . . . . . . Garrison Access Hacks 1 | . . . . . . 1 . Unlock Access 1 | . . . . . . 1 . Unauthorized Hacks . | . . . . . . . . Terminals . | . . . . . . . . Fabricators . | . . . . . . . . Repair Stations . | . . . . . . . . Recycling Units . | . . . . . . . . Scanalyzers . | . . . . . . . . Garrison Access . | . . . . . . . . Data Cores Recovered . | . . . . . . . . Used . | . . . . . . . . Hacking Detections 3 | . . . . 2 . 1 . Full Trace Events . | . . . . . . . . Feedback Events . | . . . . . . . . Feedback Blocked . | . . . . . . . . Robot Schematics Acquired . | . . . . . . . . Robots Built . | . . . . . . . . Authchips . | . . . . . . . . Time . | . . . . . . . . Total Robot Build Rating . | . . . . . . . . Part Schematics Acquired . | . . . . . . . . Parts Built . | . . . . . . . . Authchips . | . . . . . . . . Time . | . . . . . . . . Total Part Build Rating . | . . . . . . . . Parts Repaired . | . . . . . . . . Time . | . . . . . . . . Parts Recycled . | . . . . . . . . Recycled Matter . | . . . . . . . . Retrieved Matter . | . . . . . . . . Retrieved Components . | . . . . . . . . Parts Scanalyzed . | . . . . . . . . Part Schematics Acquired . | . . . . . . . . Parts Damaged . | . . . . . . . . Bothacking | -11 -10 -10 -9 -9 -8 -7 -7 ------------ Run | Yrd Mat Min Mat Sto Mat Fac Low Used RIF Installer . | . . . . . . . . Robots Hacked . | . . . . . . . . Non-combat . | . . . . . . . . Combat . | . . . . . . . . Robot Hacks Applied . | . . . . . . . . Relay Couplers Released 2 | . . . . . . 2 . Machine Destruction 2 | . . . . . . 2 . Fabnet Peak Effective % . | . . . . . . . . Robots Rewired . | . . . . . . . . Allies Hacked . | . . . . . . . . Hacks Repelled . | . . . . . . . . Allies | -11 -10 -10 -9 -9 -8 -7 -7 -------- Run | Yrd Mat Min Mat Sto Mat Fac Low Total Allies 1 | . . . . 1 . . . Largest Group 1 | . . . . 1 1 . . Highest-Rated Group 100 | . . . . 100 100 . . Highest-Rated Ally 100 | . . . . 100 100 . . Total Orders . | . . . . . . . . Ally Attacks 6 | . . . . 6 . . . Total Damage 181 | . . . . 181 . . . Kills 3 | . . . . 3 . . . Allies Corrupted . | . . . . . . . . Allies Melted . | . . . . . . . . Intel | -11 -10 -10 -9 -9 -8 -7 -7 ------- Run | Yrd Mat Min Mat Sto Mat Fac Low Robot Analysis Total . | . . . . . . . . Derelict Logs Recovered 1 | . . . . . . . 1 Drone Launches . | . . . . . . . . Drone Recoveries . | . . . . . . . . Exploration | -11 -10 -10 -9 -9 -8 -7 -7 ------------- Run | Yrd Mat Min Mat Sto Mat Fac Low Turns Passed 3507 | 59 125 385 585 901 313 458 681 Spaces Moved 1972 | 44 77 238 261 424 142 301 485 Core 23 | 20 . . . . . . 3 Treads 1094 | 24 77 238 261 424 70 . . Legs 855 | . . . . . 72 301 482 Wheels . | . . . . . . . . Hover . | . . . . . . . . Flight . | . . . . . . . . Fastest Speed 50 | 50 160 160 160 163 120 120 50 Average Speed 144 | 110 160 160 168 168 141 124 119 Slowest Speed 190 | 160 160 160 170 170 163 190 120 Overloaded Moves . | . . . . . . . . Propulsion Burnouts . | . . . . . . . . Robots Hopped . | . . . . . . . . Cave-ins Triggered . | . . . . . . . . Exploration Rate (%) 30 | 4 22 33 25 60 15 11 71 Regions Visited 7 Branch Regions 3 Pre-discovered Areas 1 | . . . . . . . 1 Known Exits Taken 3 | . . . . 1 1 1 . Unknown Exits Taken 4 | 1 1 1 1 . . . . Scrap Searched 4 | . . . . . . . 4 Spaces Dug . | . . . . . . . . Terrain Destroyed 46 | . . . 11 3 . 26 6 Melee . | . . . . . . . . Projectile 27 | . . . 11 3 . 7 6 AOE 19 | . . . . . . 19 . Terrain Rammed . | . . . . . . . . Walls Destroyed . | . . . . . . . . Machines Disabled . | . . . . . . . . Actions | -11 -10 -10 -9 -9 -8 -7 -7 --------- Run | Yrd Mat Min Mat Sto Mat Fac Low Total 2373 | 55 79 242 354 539 210 343 551 Wait 131 | . . 3 33 46 18 . 31 Move 1965 | 43 76 237 260 423 141 300 485 Hop . | . . . . . . . . Pick Up 53 | 6 1 1 14 10 8 11 2 Fast Attach . | . . . . . . . . Attach 21 | 6 . 1 2 2 3 4 3 Detach 3 | . . . . . . . 3 Swap 33 | . 1 . 9 9 8 6 . Drop 34 | . 1 . 8 9 10 4 2 Fire 113 | . . . 26 35 22 16 14 Melee . | . . . . . . . . Ram 8 | . . . . . . . 8 Kick 5 | . . . . . . 2 3 Crush 7 | . . . 2 5 . . . Escape Stasis . | . . . . . . . . Rewire . | . . . . . . . . Trap . | . . . . . . . . Miscellaneous . | . . . . . . . . Route ------- -11/Scrapyard -10/Materials (discovered 2 exits: [*Min x2]) -10/Mines -9/Materials (discovered 2 exits: *Mat / *Sto) -9/Storage -8/Materials -7/Factory -7/Lower Caves History --------- Turn | Location | Event 16 | -11/Scrapyard | Discovered new exit (range 16) 60 | -11/Scrapyard | Entered Materials 60 | -10/Materials | Discovered new exit (range 7) 172 | -10/Materials | Discovered new exit (range 7) 185 | -10/Materials | Entered Mines 225 | -10/Mines | Discovered new exit (range 5) 300 | -10/Mines | Build established: Mutant 570 | -10/Mines | Entered Materials 570 | -9/Materials | Evolved 2 slots: Power x1, Propulsion x1 1055 | -9/Materials | Discovered new exit (range 16) 1123 | -9/Materials | Discovered new exit (range 6) 1155 | -9/Materials | Entered Storage 1864 | -9/Storage | Met 01-MTF 1945 | -9/Storage | Discovered new exit (range 16) 2054 | -9/Storage | Identified exit to Materials 2056 | -9/Storage | Entered Materials 2056 | -8/Materials | Accompanied by 1 ally (01-MTF) 2056 | -8/Materials | Evolved 2 slots: Utility x1, Weapon x1 2061 | -8/Materials | 01-MTF left 2271 | -8/Materials | Discovered new exit (range 10) 2365 | -8/Materials | Identified exit to Factory 2369 | -8/Materials | Entered Factory 2369 | -7/Factory | Evolved 2 slots: Utility x1, Weapon x1 2553 | -7/Factory | Build established: Scavenger-Tank 2663 | -7/Factory | Garrison activated, responded to threat 2759 | -7/Factory | Identified exit to Garrison 2769 | -7/Factory | First assault squad dispatched 2812 | -7/Factory | Discovered new exit (range 10) 2825 | -7/Factory | Identified exit to Lower Caves 2827 | -7/Factory | Entered Lower Caves 3017 | -7/Lower Caves | Encountered a Warlord checkpoint 3038 | -7/Lower Caves | Build established: Tank 3196 | -7/Lower Caves | Spotted B-75 Beast 3439 | -7/Lower Caves | Attracted the attention of an 0b10 outpost 3502 | -7/Lower Caves | Core integrity fell below 50% 3508 | -7/Lower Caves | Core integrity fell below 20% 3508 | -7/Lower Caves | Destroyed by S-27 Virus with Autogun Last Messages --------------- 03496_ Imp. Heat Sink destroyed. 03496_ Slammed into L-41 Fighter. 03496_ Destabilizing: System interference. 03496_ Gauss Cannon temporarily disabled. 03496_ Signal Interpreter temporarily disabled. 03496_ Gauss Cannon temporarily disabled. 03497_ Slug penetrates L-41 Fighter. 03498_ Slammed into L-41 Fighter. 03500_ Cld. Particle Cannon destroyed. 03501_ Slammed into L-41 Fighter. 03501_ Slug penetrates L-41 Fighter. 03501_ Gauss Cannon destroyed. 03502_ Slammed into L-41 Fighter. 03502_ Signal Interpreter broken. 03502_ Destabilizing: Short circuit. 03503_ Slammed into Y-64 Sentinel. 03504_ Penetrated by Slug. 03506_ Slammed into Y-64 Sentinel. 03507_ Penetrated by Slug. 03507_ Slammed into Y-64 Sentinel. Map ----- +----------------------------------------------------+ | ?????????## #### ##??????? | | #????????## #### ## #??????? | | #????##### #### #### ##??????? | | #????# ## ##?# #???????? | | #????# ## ##### ##???????? | | #????# ## ### ## ##????????? | | ##???# """"" " """" ### ### # #?????????? | | ##??# """""" """ #####?# # #?????????? | | #### " " "" "" ##???# #% #######???? | | " "" " ##?## %=* #???? | | ### ##"## % #???? | | " """""" % #? # #???? | | # " " " """ % #?? / %# #???? | | ### " """ " " "" #### #?? #### "#??? | | ??#### "" " """" ##?# %#??? ????##??? | | ?????# ### #??? ???????? | | ?????# ## #???? ???????? | | ?????# #### #????##??????? | | ?????#### ######## ##?# ????????????? | | ????????## ###### ### ######?#?????????? | | ?????????## #### #### ###???????? | | ??????????# ### #???????? | | ??????????## ## #??????? | | ??????????#; l #??????? | | ???????????# Yll% ## ## #??????? | | ???????????# @%% ##?# ##?? #??????? | | ???????????# ## s ;#??##???? ?#??????? | | ???????????## ##### ###?????????????????? | | ????????????#####???##########???????????????????? | | ?????????????????????????????????????????????????? | | ?????????????????????????????????????????????????? | | ?????????????????????????????????????????????????? | | ?????????????????????????????????????????????????? | | ?????????????????????????????????????????????????? | | ?????????????????????????????????????????????????? | | ?????????????????????????????????????????????????? | | ?????????????????????????????????????????????????? | | ?????????????????????????????????????????????????? | | ?????????????????????????????????????????????????? | | ?????????????????????????????????????????????????? | | ?????????????????????????????????????????????????? | | ?????????????????????????????????????????????????? | | ?????????????????????????????????????????????????? | | ?????????????????????????????????????????????????? | | ?????????????????????????????????????????????????? | | ?????????????????????????????????????????????????? | | ?????????????????????????????????????????????????? | | ?????????????????????????????????????????????????? | | ?????????????????????????????????????????????????? | | ?????????????????????????????????????????????????? | +----------------------------------------------------+ Best States ------------- Heat Dissipation 48 Energy Generation 23 Energy Capacity 460 Matter Stores 450 Matter Capacity 450 Sight Range 16 Terrain Scan Density 10 Armor Coverage 150 Weapon Shielding 66 Evasion (%) 55 Recoil Reduction 4 Item Schematics ----------------- None Robot Schematics ------------------ None Fabricated ------------ Nothing Alien Tech Used ----------------- None Achievements -------------- Significant Disruption Challenges ------------ None Game ------ Seed DiametricMeleeBox Manual? 0 Play Time 00:36:42 Cumulative 3.5 hours Start 2024.04.13 @ 14:37:28 End 2024.04.13 @ 15:12:06 Sessions 1 Manual Loads 0 Difficulty Rogue Special Mode None Game No. 8 Rogue 8 Adventurer 0 Explorer 0 Win Type - Total 0 Types 0/0/0/0/0/0/0/0/0 Lore% 4 Gallery% 11 Achievement% 9 Wizard Run 0 Options --------- Layout 1 ASCII 0 Keyboard 0 Movement Numpad Keybinds 0 Fullscreen 1 Font 24/Smallcaps Map View 38x17 Zoom Use 67% Tactical HUD 1 Map Filters NONE Filters NONE Steam 1 RUN: 21e93f4b-7773-40e7-b1ca-9924106df3bf